Workbook

Sheet porady
A1: PORADY DOTYCZĄCE SZABLONU
A2: Czy istnieje łatwy sposób poruszania się między arkuszem trendów w wydatkach a szczegółami wydatków miesięcznych?
A3: Aby szybko przejść do wydatków w określonym miesiącu, kliknij skojarzony link nawigacyjny powyżej wykresu, na przykład link nawigacyjny Sty w komórce B2. Następnie, aby wrócić do arkusza Trendy w wydatkach, kliknij link nawigacyjny Podsumowanie w komórce D1.
A4: Aby powrócić do tego arkusza porad, w arkuszu podsumowania wybierz komórkę N2. We wszystkich arkuszach miesięcy wybierz komórkę E1.
A5: Jak dodać nowy typ wydatku do podsumowania wydatków lub nowe wydatki miesięczne?
A6: Podsumowanie wydatków poniżej wykresu i szczegóły wydatków w każdym miesiącu mają postać tabel programu Excel. Aby dodać nowe wiersze do dowolnej tabeli programu Excel, wykonaj jedną z następujących czynności:
A7: =ROW(A1)&". Jeśli tabela nie zawiera wiersza sumy, zacznij wpisywać poniżej tabeli, a po naciśnięciu klawisza Enter lub Tab zostanie ona automatycznie rozwinięta." -> 1. Jeśli tabela nie zawiera wiersza sumy, zacznij wpisywać poniżej tabeli, a po naciśnięciu klawisza Enter lub Tab zostanie ona automatycznie rozwinięta.
A8: =ROW(A2)&". Umieść wskaźnik komórki na ostatniej komórce powyżej wiersza sumy, takiego jak suma ostatnich wydatków, a następnie naciśnij klawisz Tab." -> 2. Umieść wskaźnik komórki na ostatniej komórce powyżej wiersza sumy, takiego jak suma ostatnich wydatków, a następnie naciśnij klawisz Tab.
A9: =ROW(A3)&". Kliknij prawym przyciskiem myszy w tabeli i w wyświetlonym menu wskaż pozycję Wstaw, a następnie kliknij pozycję Wiersze tabeli powyżej lub Wiersze tabeli poniżej." -> 3. Kliknij prawym przyciskiem myszy w tabeli i w wyświetlonym menu wskaż pozycję Wstaw, a następnie kliknij pozycję Wiersze tabeli powyżej lub Wiersze tabeli poniżej.
A10: =ROW(A4)&". W prawym dolnym rogu tabeli umieść wskaźnik myszy na uchwycie zmiany rozmiaru tabeli, a następnie przeciągnij w dół, aby zwiększyć liczbę dostępnych wierszy tabeli." -> 4. W prawym dolnym rogu tabeli umieść wskaźnik myszy na uchwycie zmiany rozmiaru tabeli, a następnie przeciągnij w dół, aby zwiększyć liczbę dostępnych wierszy tabeli.
A11: Wprowadź wydatek w arkuszu podsumowania w tabeli Podsumowanie_wydatków w kolumnie Wydatki.
A12: Dodaj kwotę wydatku dla każdego typu wydatku w arkuszu miesiąca, którego dotyczy wydatek.
A13: na przykład: „Wydatek 1” występuje w miesiącach od stycznia do czerwca i w grudniu.
A14: =ROW(A1)&". Pozycja Wydatek 1 zostaje wprowadzona w arkuszu podsumowania w obszarze wydatków w tabeli Podsumowanie_wydatków (jako tytuł typu wydatku)" -> 1. Pozycja Wydatek 1 zostaje wprowadzona w arkuszu podsumowania w obszarze wydatków w tabeli Podsumowanie_wydatków (jako tytuł typu wydatku)
A15: =ROW(A2)&". W przypadku każdego miesiąca, w którym występuje wydatek, wprowadź kwotę tego wydatku w odpowiednim arkuszu miesiąca." -> 2. W przypadku każdego miesiąca, w którym występuje wydatek, wprowadź kwotę tego wydatku w odpowiednim arkuszu miesiąca.
A16: =ROW(A3)&". Za pomocą typu wydatku z arkusza Podsumowanie_wydatków tworzona jest lista kategorii dla kolumny Kategoria w poszczególnych arkuszach miesięcy." -> 3. Za pomocą typu wydatku z arkusza Podsumowanie_wydatków tworzona jest lista kategorii dla kolumny Kategoria w poszczególnych arkuszach miesięcy.
A17: =ROW(A4)&". Aby wybrać odpowiedni typ wydatku dla wprowadzonej kwoty wydatku, skorzystaj z listy kategorii w kolumnie Kategoria" -> 4. Aby wybrać odpowiedni typ wydatku dla wprowadzonej kwoty wydatku, skorzystaj z listy kategorii w kolumnie Kategoria
A18: =ROW(A5)&". Aby dodać nowe wydatki dla dowolnego miesiąca, dodaj nowy wiersz w tabeli Podsumowanie_wydatków w arkuszu podsumowania, a następnie wprowadź odpowiednie szczegóły wydatków w arkuszu miesiąca, którego dotyczą." -> 5. Aby dodać nowe wydatki dla dowolnego miesiąca, dodaj nowy wiersz w tabeli Podsumowanie_wydatków w arkuszu podsumowania, a następnie wprowadź odpowiednie szczegóły wydatków w arkuszu miesiąca, którego dotyczą.

Sheet podsumowanie
A1: TRENDY W WYDATKACH
B2: Sty | C2: Lut | D2: Mar | E2: Kwi | F2: Maj | G2: Cze | H2: Lip | I2: Sie | J2: Wrz | K2: Paź | L2: Lis | M2: Gru | N2: Porady
A4: Wydatki | B4: Sty | C4: Lut | D4: Mar | E4: Kwi | F4: Maj | G4: Cze | H4: Lip | I4: Sie | J4: Wrz | K4: Paź | L4: Lis | M4: Gru | N4: Suma | O4: Trend
A5: Wydatek 1 | B5: =SUMIFS(Wyd_sty[Kwota], Wyd_sty[Kategoria], Podsumowanie_wydatków[[#This Row],[Wydatki]]) -> 33.00 | C5: =SUMIFS(Wyd_lut[Kwota], Wyd_lut[Kategoria], Podsumowanie_wydatków[[#This Row],[Wydatki]]) -> 375.00 | D5: =SUMIFS(Wyd_mar[Kwota], Wyd_mar[Kategoria], Podsumowanie_wydatków[[#This Row],[Wydatki]]) -> 33.00 | E5: =SUMIFS(Wyd_kwi[Kwota], Wyd_kwi[Kategoria], Podsumowanie_wydatków[[#This Row],[Wydatki]]) -> 45.00 | F5: =SUMIFS(Wyd_maj[Kwota], Wyd_maj[Kategoria], Podsumowanie_wydatków[[#This Row],[Wydatki]]) -> 375.00 | G5: =SUMIFS(Wyd_cze[Kwota], Wyd_cze[Kategoria], Podsumowanie_wydatków[[#This Row],[Wydatki]]) -> 201.00 | H5: =SUMIFS(Wyd_lip[Kwota], Wyd_lip[Kategoria], Podsumowanie_wydatków[[#This Row],[Wydatki]]) -> 0.00 | I5: =SUMIFS(Wyd_sie[Kwota], Wyd_sie[Kategoria], Podsumowanie_wydatków[[#This Row],[Wydatki]]) -> 0.00 | J5: =SUMIFS(Wyd_wrz[Kwota], Wyd_wrz[Kategoria], Podsumowanie_wydatków[[#This Row],[Wydatki]]) -> 0.00 | K5: =SUMIFS(Wyd_paź[Kwota], Wyd_paź[Kategoria], Podsumowanie_wydatków[[#This Row],[Wydatki]]) -> 0.00 | L5: =SUMIFS(Wyd_lis[Kwota], Wyd_lis[Kategoria], Podsumowanie_wydatków[[#This Row],[Wydatki]]) -> 0.00 | M5: =SUMIFS(Wyd_gru[Kwota], Wyd_gru[Kategoria], Podsumowanie_wydatków[[#This Row],[Wydatki]]) -> 201.00 | N5: =SUM(Podsumowanie_wydatków[[#This Row],[Sty]:[Gru]]) -> 1,263.00
A6: Wydatek 2 | B6: =SUMIFS(Wyd_sty[Kwota], Wyd_sty[Kategoria], Podsumowanie_wydatków[[#This Row],[Wydatki]]) -> 238.00 | C6: =SUMIFS(Wyd_lut[Kwota], Wyd_lut[Kategoria], Podsumowanie_wydatków[[#This Row],[Wydatki]]) -> 238.00 | D6: =SUMIFS(Wyd_mar[Kwota], Wyd_mar[Kategoria], Podsumowanie_wydatków[[#This Row],[Wydatki]]) -> 238.00 | E6: =SUMIFS(Wyd_kwi[Kwota], Wyd_kwi[Kategoria], Podsumowanie_wydatków[[#This Row],[Wydatki]]) -> 123.00 | F6: =SUMIFS(Wyd_maj[Kwota], Wyd_maj[Kategoria], Podsumowanie_wydatków[[#This Row],[Wydatki]]) -> 111.00 | G6: =SUMIFS(Wyd_cze[Kwota], Wyd_cze[Kategoria], Podsumowanie_wydatków[[#This Row],[Wydatki]]) -> 98.00 | H6: =SUMIFS(Wyd_lip[Kwota], Wyd_lip[Kategoria], Podsumowanie_wydatków[[#This Row],[Wydatki]]) -> 0.00 | I6: =SUMIFS(Wyd_sie[Kwota], Wyd_sie[Kategoria], Podsumowanie_wydatków[[#This Row],[Wydatki]]) -> 0.00 | J6: =SUMIFS(Wyd_wrz[Kwota], Wyd_wrz[Kategoria], Podsumowanie_wydatków[[#This Row],[Wydatki]]) -> 0.00 | K6: =SUMIFS(Wyd_paź[Kwota], Wyd_paź[Kategoria], Podsumowanie_wydatków[[#This Row],[Wydatki]]) -> 0.00 | L6: =SUMIFS(Wyd_lis[Kwota], Wyd_lis[Kategoria], Podsumowanie_wydatków[[#This Row],[Wydatki]]) -> 0.00 | M6: =SUMIFS(Wyd_gru[Kwota], Wyd_gru[Kategoria], Podsumowanie_wydatków[[#This Row],[Wydatki]]) -> 440.00 | N6: =SUM(Podsumowanie_wydatków[[#This Row],[Sty]:[Gru]]) -> 1,486.00
A7: Wydatek 3 | B7: =SUMIFS(Wyd_sty[Kwota], Wyd_sty[Kategoria], Podsumowanie_wydatków[[#This Row],[Wydatki]]) -> 110.00 | C7: =SUMIFS(Wyd_lut[Kwota], Wyd_lut[Kategoria], Podsumowanie_wydatków[[#This Row],[Wydatki]]) -> 110.00 | D7: =SUMIFS(Wyd_mar[Kwota], Wyd_mar[Kategoria], Podsumowanie_wydatków[[#This Row],[Wydatki]]) -> 110.00 | E7: =SUMIFS(Wyd_kwi[Kwota], Wyd_kwi[Kategoria], Podsumowanie_wydatków[[#This Row],[Wydatki]]) -> 125.00 | F7: =SUMIFS(Wyd_maj[Kwota], Wyd_maj[Kategoria], Podsumowanie_wydatków[[#This Row],[Wydatki]]) -> 333.00 | G7: =SUMIFS(Wyd_cze[Kwota], Wyd_cze[Kategoria], Podsumowanie_wydatków[[#This Row],[Wydatki]]) -> 122.00 | H7: =SUMIFS(Wyd_lip[Kwota], Wyd_lip[Kategoria], Podsumowanie_wydatków[[#This Row],[Wydatki]]) -> 0.00 | I7: =SUMIFS(Wyd_sie[Kwota], Wyd_sie[Kategoria], Podsumowanie_wydatków[[#This Row],[Wydatki]]) -> 0.00 | J7: =SUMIFS(Wyd_wrz[Kwota], Wyd_wrz[Kategoria], Podsumowanie_wydatków[[#This Row],[Wydatki]]) -> 0.00 | K7: =SUMIFS(Wyd_paź[Kwota], Wyd_paź[Kategoria], Podsumowanie_wydatków[[#This Row],[Wydatki]]) -> 0.00 | L7: =SUMIFS(Wyd_lis[Kwota], Wyd_lis[Kategoria], Podsumowanie_wydatków[[#This Row],[Wydatki]]) -> 0.00 | M7: =SUMIFS(Wyd_gru[Kwota], Wyd_gru[Kategoria], Podsumowanie_wydatków[[#This Row],[Wydatki]]) -> 122.00 | N7: =SUM(Podsumowanie_wydatków[[#This Row],[Sty]:[Gru]]) -> 1,032.00
A8: Wydatek 4 | B8: =SUMIFS(Wyd_sty[Kwota], Wyd_sty[Kategoria], Podsumowanie_wydatków[[#This Row],[Wydatki]]) -> 426.00 | C8: =SUMIFS(Wyd_lut[Kwota], Wyd_lut[Kategoria], Podsumowanie_wydatków[[#This Row],[Wydatki]]) -> 84.00 | D8: =SUMIFS(Wyd_mar[Kwota], Wyd_mar[Kategoria], Podsumowanie_wydatków[[#This Row],[Wydatki]]) -> 84.00 | E8: =SUMIFS(Wyd_kwi[Kwota], Wyd_kwi[Kategoria], Podsumowanie_wydatków[[#This Row],[Wydatki]]) -> 426.00 | F8: =SUMIFS(Wyd_maj[Kwota], Wyd_maj[Kategoria], Podsumowanie_wydatków[[#This Row],[Wydatki]]) -> 125.00 | G8: =SUMIFS(Wyd_cze[Kwota], Wyd_cze[Kategoria], Podsumowanie_wydatków[[#This Row],[Wydatki]]) -> 187.00 | H8: =SUMIFS(Wyd_lip[Kwota], Wyd_lip[Kategoria], Podsumowanie_wydatków[[#This Row],[Wydatki]]) -> 0.00 | I8: =SUMIFS(Wyd_sie[Kwota], Wyd_sie[Kategoria], Podsumowanie_wydatków[[#This Row],[Wydatki]]) -> 0.00 | J8: =SUMIFS(Wyd_wrz[Kwota], Wyd_wrz[Kategoria], Podsumowanie_wydatków[[#This Row],[Wydatki]]) -> 0.00 | K8: =SUMIFS(Wyd_paź[Kwota], Wyd_paź[Kategoria], Podsumowanie_wydatków[[#This Row],[Wydatki]]) -> 0.00 | L8: =SUMIFS(Wyd_lis[Kwota], Wyd_lis[Kategoria], Podsumowanie_wydatków[[#This Row],[Wydatki]]) -> 0.00 | M8: =SUMIFS(Wyd_gru[Kwota], Wyd_gru[Kategoria], Podsumowanie_wydatków[[#This Row],[Wydatki]]) -> 187.00 | N8: =SUM(Podsumowanie_wydatków[[#This Row],[Sty]:[Gru]]) -> 1,519.00
A9: Wydatek 5 | B9: =SUMIFS(Wyd_sty[Kwota], Wyd_sty[Kategoria], Podsumowanie_wydatków[[#This Row],[Wydatki]]) -> 54.00 | C9: =SUMIFS(Wyd_lut[Kwota], Wyd_lut[Kategoria], Podsumowanie_wydatków[[#This Row],[Wydatki]]) -> 54.00 | D9: =SUMIFS(Wyd_mar[Kwota], Wyd_mar[Kategoria], Podsumowanie_wydatków[[#This Row],[Wydatki]]) -> 109.00 | E9: =SUMIFS(Wyd_kwi[Kwota], Wyd_kwi[Kategoria], Podsumowanie_wydatków[[#This Row],[Wydatki]]) -> 98.00 | F9: =SUMIFS(Wyd_maj[Kwota], Wyd_maj[Kategoria], Podsumowanie_wydatków[[#This Row],[Wydatki]]) -> 33.00 | G9: =SUMIFS(Wyd_cze[Kwota], Wyd_cze[Kategoria], Podsumowanie_wydatków[[#This Row],[Wydatki]]) -> 441.00 | H9: =SUMIFS(Wyd_lip[Kwota], Wyd_lip[Kategoria], Podsumowanie_wydatków[[#This Row],[Wydatki]]) -> 0.00 | I9: =SUMIFS(Wyd_sie[Kwota], Wyd_sie[Kategoria], Podsumowanie_wydatków[[#This Row],[Wydatki]]) -> 0.00 | J9: =SUMIFS(Wyd_wrz[Kwota], Wyd_wrz[Kategoria], Podsumowanie_wydatków[[#This Row],[Wydatki]]) -> 0.00 | K9: =SUMIFS(Wyd_paź[Kwota], Wyd_paź[Kategoria], Podsumowanie_wydatków[[#This Row],[Wydatki]]) -> 0.00 | L9: =SUMIFS(Wyd_lis[Kwota], Wyd_lis[Kategoria], Podsumowanie_wydatków[[#This Row],[Wydatki]]) -> 0.00 | M9: =SUMIFS(Wyd_gru[Kwota], Wyd_gru[Kategoria], Podsumowanie_wydatków[[#This Row],[Wydatki]]) -> 99.00 | N9: =SUM(Podsumowanie_wydatków[[#This Row],[Sty]:[Gru]]) -> 888.00
A10: Suma | B10: =SUBTOTAL(109,Podsumowanie_wydatków[Sty]) -> 861.00 | C10: =SUBTOTAL(109,Podsumowanie_wydatków[Lut]) -> 861.00 | D10: =SUBTOTAL(109,Podsumowanie_wydatków[Mar]) -> 574.00 | E10: =SUBTOTAL(109,Podsumowanie_wydatków[Kwi]) -> 817.00 | F10: =SUBTOTAL(109,Podsumowanie_wydatków[Maj]) -> 977.00 | G10: =SUBTOTAL(109,Podsumowanie_wydatków[Cze]) -> 1,049.00 | H10: =SUBTOTAL(109,Podsumowanie_wydatków[Lip]) -> 0.00 | I10: =SUBTOTAL(109,Podsumowanie_wydatków[Sie]) -> 0.00 | J10: =SUBTOTAL(109,Podsumowanie_wydatków[Wrz]) -> 0.00 | K10: =SUBTOTAL(109,Podsumowanie_wydatków[Paź]) -> 0.00 | L10: =SUBTOTAL(109,Podsumowanie_wydatków[Lis]) -> 0.00 | M10: =SUBTOTAL(109,Podsumowanie_wydatków[Gru]) -> 1,049.00 | N10: =SUBTOTAL(109,Podsumowanie_wydatków[Suma]) -> 6,188.00

Sheet sty
A1: WYDATKI W STYCZNIU | D1: Podsumowanie | E1: Porady
A2: Data | B2: NR ZZ | C2: Kwota | D2: Kategoria | E2: Opis
A3: =DATE(YEAR(TODAY()),1,4) -> 2016-01-04 | B3: A-12345 | C3: 33.00 | D3: Wydatek 1 | E3: Materiały
A4: =DATE(YEAR(TODAY()),1,5) -> 2016-01-05 | B4: A-12346 | C4: 238.00 | D4: Wydatek 2
C5: 342.00 | D5: Wydatek 4
C6: 110.00 | D6: Wydatek 3
C7: 84.00 | D7: Wydatek 4
C8: 54.00 | D8: Wydatek 5
A9: Suma | C9: =SUBTOTAL(109,Wyd_sty[Kwota]) -> 861.00

Sheet lut
A1: WYDATKI W LUTYM | D1: Podsumowanie | E1: Porady
A2: Data | B2: NR ZZ | C2: Kwota | D2: Kategoria | E2: Opis
A3: =DATE(YEAR(TODAY()),2,3) -> 2016-02-03 | B3: A-12345 | C3: 33.00 | D3: Wydatek 1 | E3: Materiały
A4: =DATE(YEAR(TODAY()),2,4) -> 2016-02-04 | B4: A-12346 | C4: 238.00 | D4: Wydatek 2
C5: 342.00 | D5: Wydatek 1
C6: 110.00 | D6: Wydatek 3
C7: 84.00 | D7: Wydatek 4
C8: 54.00 | D8: Wydatek 5
A9: Suma | C9: =SUBTOTAL(109,Wyd_lut[Kwota]) -> 861.00

Sheet mar
A1: WYDATKI W MARCU | D1: Podsumowanie | E1: Porady
A2: Data | B2: NR ZZ | C2: Kwota | D2: Kategoria | E2: Opis
A3: =DATE(YEAR(TODAY()),3,5) -> 2016-03-05 | B3: A-12345 | C3: 33.00 | D3: Wydatek 1 | E3: Materiały
A4: =DATE(YEAR(TODAY()),3,6) -> 2016-03-06 | B4: A-12346 | C4: 238.00 | D4: Wydatek 2
C5: 55.00 | D5: Wydatek 5
C6: 110.00 | D6: Wydatek 3
C7: 84.00 | D7: Wydatek 4
C8: 54.00 | D8: Wydatek 5
A9: Suma | C9: =SUBTOTAL(109,Wyd_mar[Kwota]) -> 574.00

Sheet kwi
A1: WYDATKI W KWIETNIU | D1: Podsumowanie | E1: Porady
A2: Data | B2: NR ZZ | C2: Kwota | D2: Kategoria | E2: Opis
A3: =DATE(YEAR(TODAY()),4,4) -> 2016-04-04 | B3: A-12345 | C3: 45.00 | D3: Wydatek 1 | E3: Materiały
A4: =DATE(YEAR(TODAY()),4,8) -> 2016-04-08 | B4: A-12346 | C4: 123.00 | D4: Wydatek 2
C5: 342.00 | D5: Wydatek 4
C6: 125.00 | D6: Wydatek 3
C7: 84.00 | D7: Wydatek 4
C8: 98.00 | D8: Wydatek 5
A9: Suma | C9: =SUBTOTAL(109,Wyd_kwi[Kwota]) -> 817.00

Sheet maj
A1: WYDATKI W MAJU | D1: Podsumowanie | E1: Porady
A2: Data | B2: NR ZZ | C2: Kwota | D2: Kategoria | E2: Opis
A3: =DATE(YEAR(TODAY()),5,3) -> 2016-05-03 | B3: A-12345 | C3: 33.00 | D3: Wydatek 1 | E3: Materiały
A4: =DATE(YEAR(TODAY()),5,8) -> 2016-05-08 | B4: A-12346 | C4: 111.00 | D4: Wydatek 2
C5: 342.00 | D5: Wydatek 1
C6: 333.00 | D6: Wydatek 3
C7: 125.00 | D7: Wydatek 4
C8: 33.00 | D8: Wydatek 5
A9: Suma | C9: =SUBTOTAL(109,Wyd_maj[Kwota]) -> 977.00

Sheet cze
A1: WYDATKI W CZERWCU | D1: Podsumowanie | E1: Porady
A2: Data | B2: NR ZZ | C2: Kwota | D2: Kategoria | E2: Opis
A3: =DATE(YEAR(TODAY()),6,7) -> 2016-06-07 | B3: A-12345 | C3: 201.00 | D3: Wydatek 1 | E3: Materiały
A4: =DATE(YEAR(TODAY()),6,8) -> 2016-06-08 | B4: A-12346 | C4: 98.00 | D4: Wydatek 2
C5: 342.00 | D5: Wydatek 5
C6: 122.00 | D6: Wydatek 3
C7: 187.00 | D7: Wydatek 4
C8: 99.00 | D8: Wydatek 5
A9: Suma | C9: =SUBTOTAL(109,Wyd_cze[Kwota]) -> 1,049.00

Sheet lip
A1: WYDATKI W LIPCU | D1: Podsumowanie | E1: Porady
A2: Data | B2: NR ZZ | C2: Kwota | D2: Kategoria | E2: Opis
A3: =DATE(YEAR(TODAY()),7,9) -> 2016-07-09 | B3: A-12345 | D3: Wydatek 1 | E3: Materiały
A4: =DATE(YEAR(TODAY()),7,14) -> 2016-07-14 | B4: A-12346 | D4: Wydatek 2
D5: Wydatek 2
D6: Wydatek 3
D7: Wydatek 4
D8: Wydatek 5
A9: Suma | C9: =SUBTOTAL(109,Wyd_lip[Kwota]) -> 0.00

Sheet sie
A1: WYDATKI W SIERPNIU | D1: Podsumowanie | E1: Porady
A2: Data | B2: NR ZZ | C2: Kwota | D2: Kategoria | E2: Opis
A3: =DATE(YEAR(TODAY()),8,8) -> 2016-08-08 | B3: A-12345 | D3: Wydatek 1 | E3: Materiały
A4: =DATE(YEAR(TODAY()),8,9) -> 2016-08-09 | B4: A-12346 | D4: Wydatek 2
D5: Wydatek 2
D6: Wydatek 3
D7: Wydatek 4
D8: Wydatek 5
A9: Suma | C9: =SUBTOTAL(109,Wyd_sie[Kwota]) -> 0.00

Sheet wrz
A1: WYDATKI WE WRZEŚNIU | D1: Podsumowanie | E1: Porady
A2: Data | B2: NR ZZ | C2: Kwota | D2: Kategoria | E2: Opis
A3: =DATE(YEAR(TODAY()),9,9) -> 2016-09-09 | B3: A-12345 | D3: Wydatek 1 | E3: Materiały
A4: =DATE(YEAR(TODAY()),9,15) -> 2016-09-15 | B4: A-12346 | D4: Wydatek 2
D5: Wydatek 2
D6: Wydatek 3
D7: Wydatek 4
D8: Wydatek 5
A9: Suma | C9: =SUBTOTAL(109,Wyd_wrz[Kwota]) -> 0.00

Sheet paź
A1: WYDATKI W PAŹDZIERNIKU | D1: Podsumowanie | E1: Porady
A2: Data | B2: NR ZZ | C2: Kwota | D2: Kategoria | E2: Opis
A3: =DATE(YEAR(TODAY()),10,10) -> 2016-10-10 | B3: A-12345 | D3: Wydatek 1 | E3: Materiały
A4: =DATE(YEAR(TODAY()),10,21) -> 2016-10-21 | B4: A-12346 | D4: Wydatek 2
D5: Wydatek 2
D6: Wydatek 3
D7: Wydatek 4
D8: Wydatek 5
A9: Suma | C9: =SUBTOTAL(109,Wyd_paź[Kwota]) -> 0.00

Sheet lis
A1: WYDATKI W LISTOPADZIE | D1: Podsumowanie | E1: Porady
A2: Data | B2: NR ZZ | C2: Kwota | D2: Kategoria | E2: Opis
A3: =DATE(YEAR(TODAY()),11,14) -> 2016-11-14 | B3: A-12345 | D3: Wydatek 1 | E3: Materiały
A4: =DATE(YEAR(TODAY()),11,21) -> 2016-11-21 | B4: A-12346 | D4: Wydatek 2
D5: Wydatek 2
D6: Wydatek 3
D7: Wydatek 4
D8: Wydatek 5
A9: Suma | C9: =SUBTOTAL(109,Wyd_lis[Kwota]) -> 0.00

Sheet gru
A1: WYDATKI W GRUDNIU | D1: Podsumowanie | E1: Porady
A2: Data | B2: NR ZZ | C2: Kwota | D2: Kategoria | E2: Opis
A3: =DATE(YEAR(TODAY()),12,2) -> 2016-12-02 | B3: A-12345 | C3: 201.00 | D3: Wydatek 1 | E3: Materiały
A4: =DATE(YEAR(TODAY()),12,24) -> 2016-12-24 | B4: A-12346 | C4: 98.00 | D4: Wydatek 2
C5: 342.00 | D5: Wydatek 2
C6: 122.00 | D6: Wydatek 3
C7: 187.00 | D7: Wydatek 4
C8: 99.00 | D8: Wydatek 5
A9: Suma | C9: =SUBTOTAL(109,Wyd_gru[Kwota]) -> 1,049.00
